bitfinex/quotes_BTCUSD_20241028
["timestamp","ask_amount","ask_price","bid_price","bid_amount"]
[1730101832653,0.8998567,68511.0,68510.0,0.42474315]
[1730101833504,0.90013041,68511.0,68510.0,0.42474315]
[1730101834690,1.03122935,68511.0,68510.0,0.42474315]
[1730101834907,0.90013041,68511.0,68510.0,0.42474315]
[1730101836615,1.03121383,68511.0,68510.0,0.42474315]
[1730101837054,0.74774768,68511.0,68510.0,0.42474315]
[1730101837268,1.03124568,68511.0,68510.0,0.42474315]
[1730101837476,0.90016226,68511.0,68510.0,0.42474315]
[1730101837698,1.03124077,68511.0,68510.0,0.42474315]
[1730101841637,0.90016226,68511.0,68510.0,0.42474315]
[1730101845517,1.03124077,68511.0,68510.0,0.42474315]
[1730101845986,1.02024077,68511.0,68510.0,0.42374315]
[1730101846457,1.01824077,68511.0,68510.0,0.42374315]
[1730101846665,1.02624077,68511.0,68510.0,0.42474315]
[1730101846867,1.01824077,68511.0,68510.0,0.42274315]
[1730101847069,1.01024077,68511.0,68510.0,0.42374315]
[1730101847290,1.02652973,68511.0,68510.0,0.42474315]
[1730101848551,1.01852973,68511.0,68510.0,0.42374315]
[1730101849004,1.02652973,68511.0,68510.0,0.42374315]
[1730101849252,1.01852973,68511.0,68510.0,0.42374315]
[1730101849447,1.03652973,68511.0,68510.0,0.42574315]
[1730101849680,0.90541666,68511.0,68510.0,0.42574315]
[1730101849901,0.89541666,68511.0,68510.0,0.42474315]
[1730101850335,0.90541666,68511.0,68510.0,0.42574315]
[1730101851008,1.04734494,68511.0,68510.0,0.42574315]
[1730101851461,1.04234494,68511.0,68510.0,0.42574315]
[1730101851695,1.04734494,68511.0,68510.0,0.42574315]
[1730101855671,0.91041666,68511.0,68510.0,0.42574315]
[1730101856642,0.90872911,68511.0,68510.0,0.42574315]
[1730101862742,1.05636157,68511.0,68510.0,0.42574315]
[1730101863749,1.05136157,68511.0,68510.0,0.42574315]
[1730101863979,1.05636157,68511.0,68510.0,0.42574315]
[1730101864213,1.05609454,68511.0,68510.0,0.42574315]
[1730101864458,0.6347572,68511.0,68510.0,0.42574315]
[1730101864692,0.5327572,68511.0,68510.0,0.42574315]
[1730101864928,0.5277572,68511.0,68510.0,0.42574315]
[1730101865174,0.48167078,68511.0,68510.0,0.42574315]
[1730101865415,0.33302586,68511.0,68510.0,0.42574315]
[1730101865926,0.33302586,68511.0,68510.0,0.49584972]
[1730101866179,0.33302586,68511.0,68510.0,0.57514972]
[1730101866398,0.44242959,68511.0,68510.0,0.50504315]
[1730101867068,0.44442959,68511.0,68510.0,0.50504315]
[1730101867545,0.33502586,68511.0,68510.0,0.50504315]
[1730101868409,0.44443201,68511.0,68510.0,0.50504315]
[1730101868662,0.29382249,68511.0,68510.0,0.50504315]
[1730101868870,0.33574756,68511.0,68510.0,0.50504315]
[1730101869510,0.49125137,68511.0,68510.0,0.42574315]
[1730101869719,0.53552883,68511.0,68510.0,0.42574315]
[1730101870835,0.66683851,68511.0,68510.0,0.42574315]
[1730101871501,0.67183851,68511.0,68510.0,0.42574315]
[1730101872154,0.64052883,68511.0,68510.0,0.42574315]
[1730101872605,0.78825222,68511.0,68510.0,0.42574315]
[1730101872836,0.64052883,68511.0,68510.0,0.42574315]
[1730101874262,0.79068858,68511.0,68510.0,0.27977815]
[1730101874488,0.74382883,68511.0,68510.0,0.27977815]
[1730101874700,0.89166093,68511.0,68510.0,0.27977815]
[1730101875310,0.74382883,68511.0,68510.0,0.27977815]
[1730101876231,0.72082883,68511.0,68510.0,0.27977815]
[1730101876926,0.72082883,68511.0,68510.0,0.30783817]
[1730101876927,0.64052883,68511.0,68510.0,0.30783817]
[1730101877134,0.59625137,68511.0,68510.0,0.27977815]
[1730101877586,0.59605529,68511.0,68510.0,0.27977815]
[1730101878310,0.59105529,68511.0,68510.0,0.27977815]
[1730101878538,0.48405529,68511.0,68510.0,0.38793817]
[1730101878772,0.48405529,68511.0,68510.0,0.35987815]
[1730101878999,0.48605529,68511.0,68510.0,0.35987815]
[1730101879706,0.28759048,68511.0,68510.0,0.35987815]
[1730101880206,0.43355148,68511.0,68510.0,0.35987815]
[1730101880438,0.37514246,68511.0,68510.0,0.35987815]
[1730101881135,0.28759048,68511.0,68510.0,0.35987815]
[1730101881368,0.52109852,68511.0,68510.0,0.35987815]
[1730101881599,0.52109852,68511.0,68510.0,0.27977815]
[1730101882097,0.52309852,68511.0,68510.0,0.27977815]
[1730101882793,0.52109852,68511.0,68510.0,0.27977815]
[1730101883718,0.52309852,68511.0,68510.0,0.27977815]
[1730101884228,0.43555148,68511.0,68510.0,0.27977815]
[1730101885845,0.43355148,68511.0,68510.0,0.27977815]
[1730101886579,0.43337234,68511.0,68510.0,0.27977815]
[1730101887703,0.58587615,68511.0,68510.0,0.27977815]
[1730101887967,0.76641146,68511.0,68510.0,0.27977815]
[1730101891197,0.76588443,68511.0,68510.0,0.27977815]
[1730101892196,0.48416,68511.0,68510.0,0.27977815]
[1730101893043,0.08069519,68511.0,68510.0,0.58313817]
[1730101893256,0.07569519,68511.0,68510.0,0.58313817]
[1730101893472,0.08069519,68511.0,68510.0,0.58313817]
[1730101893673,0.07569519,68511.0,68510.0,0.58313817]
[1730101894089,0.07300025,68511.0,68510.0,0.58313817]
[1730101894300,0.07193385,68511.0,68510.0,0.58313817]
[1730101894510,0.027694,68511.0,68510.0,0.58313817]
[1730101894714,0.30980914,68511.0,68510.0,0.58313817]
[1730101894924,0.31342298,68511.0,68510.0,0.58313817]
[1730101895131,0.31342298,68511.0,68510.0,0.55507815]
[1730101896608,0.03130784,68511.0,68510.0,0.55507815]
[1730101896815,0.03330784,68511.0,68510.0,0.55507815]
[1730101897029,0.17926884,68511.0,68510.0,0.36277815]
[1730101897245,0.17926884,68511.0,68510.0,0.27977815]
[1730101898431,0.17726884,68511.0,68510.0,0.27977815]
[1730101898845,0.17926884,68511.0,68510.0,0.27977815]
[1730101902748,0.03130784,68511.0,68510.0,0.30783817]
[1730101903389,0.03130784,68511.0,68510.0,0.27977815]
[1730101904416,0.02130784,68511.0,68510.0,0.27877815]
[1730101904865,0.02930784,68511.0,68510.0,0.27977815]
[1730101905096,0.01330784,68511.0,68510.0,0.27777815]
[1730101905308,0.15126884,68511.0,68510.0,0.27677815]
[1730101905568,0.22489134,68511.0,68510.0,0.27777815]
[1730101905774,0.21989134,68511.0,68510.0,0.27677815]
[1730101905976,0.07393034,68511.0,68510.0,0.27677815]
[1730101906180,0.07693034,68511.0,68510.0,0.27677815]
[1730101906603,0.01130784,68511.0,68510.0,0.27677815]
[1730101907081,0.01130784,68511.0,68510.0,0.35957815]
[1730101907527,0.05505459,68511.0,68510.0,0.35957815]
[1730101907964,0.01130784,68511.0,68510.0,0.35957815]
[1730101910148,0.01130784,68511.0,68510.0,0.50554215]
[1730101910375,0.01130784,68511.0,68510.0,0.51069887]
[1730101910592,0.007694,68511.0,68510.0,0.50554215]
[1730101910827,0.007694,68511.0,68510.0,0.51069896]
[1730101911054,0.007694,68511.0,68510.0,1.13448596]
[1730101911480,0.007694,68511.0,68510.0,0.99740658]
[1730101911682,0.007694,68511.0,68510.0,1.15748596]
[1730101911911,0.001694,68511.0,68510.0,1.03945507]
[1730101912357,0.003694,68511.0,68510.0,1.18173856]
[1730101912576,0.002694,68511.0,68510.0,1.17373856]
[1730101912781,0.001694,68511.0,68510.0,1.02865918]
[1730101912987,0.002694,68511.0,68510.0,1.03665918]
[1730101913210,0.003694,68511.0,68510.0,1.04465918]
[1730101913410,0.003694,68511.0,68510.0,1.03665918]
[1730101913411,0.002694,68511.0,68510.0,1.03665918]
[1730101913617,0.003694,68511.0,68510.0,1.04465918]
[1730101914290,0.002694,68511.0,68510.0,1.16548596]
[1730101914568,0.002694,68511.0,68510.0,1.03665918]
[1730101914807,0.003694,68511.0,68510.0,1.04465918]
[1730101915028,0.002694,68511.0,68510.0,1.03665918]
[1730101915481,0.003694,68511.0,68510.0,1.03640658]
[1730101915892,0.002694,68511.0,68510.0,1.05767658]
[1730101916130,0.001694,68511.0,68510.0,1.04967658]
[1730101916353,0.002694,68511.0,68510.0,1.05767658]
[1730101916570,0.003694,68511.0,68510.0,1.20275596]
[1730101916789,0.002694,68511.0,68510.0,1.19475596]
[1730101917493,0.00104,68511.0,68510.0,1.19475596]
[1730101917723,0.001654,68512.0,68511.0,0.168961]
[1730101917946,0.001654,68512.0,68511.0,1.33285402]
[1730101918643,0.001654,68516.0,68515.0,0.71931176]
[1730101918884,0.001654,68516.0,68515.0,1.47476238]
[1730101919100,0.001654,68516.0,68515.0,1.46960557]
[1730101919320,0.001654,68516.0,68515.0,1.47475396]
[1730101919539,0.001654,68516.0,68515.0,1.62010938]
[1730101919797,0.001654,68516.0,68515.0,1.62525718]
[1730101920007,0.002654,68516.0,68515.0,1.63325718]
[1730101920248,0.002654,68516.0,68515.0,1.74149395]
[1730101920481,0.000824,68535.0,68524.0,0.28301338]
[1730101920726,0.000824,68535.0,68524.0,1.33749633]
[1730101920938,0.000824,68535.0,68524.0,1.36049633]
[1730101921840,0.000824,68535.0,68524.0,1.36549633]
[1730101922056,0.000824,68535.0,68524.0,1.37149633]
[1730101923388,0.145896,68542.0,68540.0,0.13707938]
[1730101923619,0.145896,68542.0,68541.0,0.62791864]
[1730101923620,0.145895,68542.0,68541.0,0.62791864]
[1730101924084,0.374966,68548.0,68541.0,0.62791864]
[1730101924303,0.005,68549.0,68547.0,0.13707938]
[1730101924529,0.145883,68548.0,68547.0,0.13707938]
[1730101924806,0.005,68549.0,68548.0,0.453697]
[1730101924807,0.150881,68549.0,68548.0,0.453697]
[1730101925712,0.153881,68549.0,68548.0,0.453697]
[1730101925953,0.30638481,68549.0,68548.0,0.453697]
[1730101926215,0.31138481,68549.0,68548.0,0.453697]
[1730101926426,0.39218481,68549.0,68548.0,0.453697]
[1730101926668,0.39618481,68549.0,68548.0,0.453697]
[1730101927569,0.39118481,68549.0,68548.0,0.4990667]
[1730101928012,0.39118481,68549.0,68548.0,0.453697]
[1730101928480,0.39318481,68549.0,68548.0,0.453697]
[1730101929362,0.235681,68549.0,68548.0,0.453697]
[1730101930106,0.237681,68549.0,68548.0,0.453697]
[1730101930326,0.39318481,68549.0,68548.0,0.953697]
[1730101931258,0.39318481,68549.0,68548.0,1.0490667]
[1730101931469,0.39318481,68549.0,68548.0,0.953697]
[1730101931470,0.69008481,68549.0,68548.0,0.953697]
[1730101933082,0.68508481,68549.0,68548.0,0.953697]
[1730101933327,0.69008481,68549.0,68548.0,0.953697]
[1730101934675,0.68508481,68549.0,68548.0,0.953697]
[1730101934915,0.69008481,68549.0,68548.0,0.953697]
[1730101935351,0.73362606,68549.0,68548.0,0.953697]
[1730101936447,0.69008481,68549.0,68548.0,0.953697]
[1730101936882,0.98528052,68549.0,68548.0,0.953697]
[1730101937360,1.02937545,68549.0,68548.0,0.953697]
[1730101937644,1.02437545,68549.0,68548.0,0.953697]
[1730101937861,1.02937545,68549.0,68548.0,0.953697]
[1730101938071,1.02537545,68549.0,68548.0,0.953697]
[1730101938284,1.02637545,68549.0,68548.0,0.954697]
[1730101938497,1.02719845,68549.0,68548.0,0.954697]
[1730101938717,1.03119845,68549.0,68548.0,0.955697]
[1730101939170,1.02719845,68549.0,68548.0,0.954697]
[1730101939606,1.03089499,68549.0,68548.0,0.954697]
[1730101940546,1.04389499,68549.0,68548.0,0.955697]
[1730101941856,1.04389499,68549.0,68548.0,0.955697]
[1730101942537,1.05389499,68549.0,68548.0,0.92652]
[1730101942778,1.05389499,68549.0,68548.0,0.780635]
[1730101943007,1.83469499,68549.0,68548.0,0.780635]
[1730101943221,1.70812899,68549.0,68548.0,0.780635]
[1730101943653,1.70812899,68549.0,68548.0,0.385292]
[1730101943654,1.83895513,68549.0,68548.0,0.385292]
[1730101943896,1.83895513,68549.0,68548.0,0.356115]
[1730101944565,1.83895513,68549.0,68548.0,0.326938]
[1730101944767,1.70812899,68549.0,68548.0,0.268584]
[1730101944975,1.73112899,68549.0,68548.0,0.21023]
[1730101945470,1.8816328,68549.0,68548.0,0.21023]
[1730101945471,1.8836328,68549.0,68548.0,0.21023]
[1730101945719,1.8836328,68549.0,68548.0,0.064345]
[1730101945720,1.8816328,68549.0,68548.0,0.064345]
[1730101946174,1.73112899,68549.0,68548.0,0.064345]
[1730101946404,1.86395513,68549.0,68548.0,0.064345]
[1730101946633,1.86195513,68549.0,68548.0,0.064345]
[1730101947072,1.84895513,68549.0,68548.0,0.004991]
[1730101947502,0.91927938,68540.0,68539.0,0.21887745]
[1730101947745,1.22385454,68540.0,68539.0,0.21887745]
[1730101947978,1.22752514,68540.0,68539.0,0.21887745]
[1730101948210,0.155915,68533.0,68532.0,0.21887745]
[1730101948436,0.47387674,68533.0,68532.0,0.21887745]
[1730101948894,0.47387674,68533.0,68525.0,0.21887745]
[1730101948895,0.14793,68526.0,68525.0,0.21887745]
[1730101949132,0.40843381,68526.0,68525.0,0.21887745]
[1730101949373,0.40843381,68526.0,68515.0,0.21887745]
[1730101949374,0.145949,68517.0,68515.0,0.21887745]
[1730101949873,0.15159899,68517.0,68515.0,0.21887745]
[1730101950084,0.15159899,68517.0,68513.0,0.0757]
[1730101950085,0.14959899,68517.0,68513.0,0.0757]
[1730101950565,0.14959899,68517.0,68510.0,0.200222]
[1730101950785,0.15459899,68517.0,68510.0,0.200222]
[1730101951017,0.15659899,68517.0,68510.0,0.200222]
[1730101951236,0.15859899,68517.0,68516.0,0.016646]
[1730101951451,0.15759899,68517.0,68516.0,0.007646]
[1730101951903,0.4161028,68517.0,68516.0,0.001646]
[1730101952375,0.4211028,68517.0,68516.0,0.001646]
[1730101952619,0.4261028,68517.0,68516.0,0.001646]
[1730101952868,0.46475668,68517.0,68516.0,0.001646]
[1730101953104,0.26559899,68517.0,68516.0,0.001646]
[1730101953349,0.26359899,68517.0,68516.0,0.001646]
[1730101953568,0.26559899,68517.0,68516.0,0.001646]
[1730101953789,0.26359899,68517.0,68516.0,0.001646]
[1730101954017,0.25959899,68517.0,68516.0,0.001646]
[1730101954492,0.00364999,68517.0,68516.0,0.40679699]
[1730101954725,0.00564999,68517.0,68516.0,0.37221954]
[1730101954971,0.002,68517.0,68516.0,0.45241954]
[1730101955665,0.145941,68521.0,68516.0,0.30646854]
[1730101955909,0.00365079,68520.0,68519.0,0.13707938]
[1730101956154,0.00365079,68520.0,68519.0,0.36724093]
[1730101956391,0.145925,68528.0,68520.0,0.0813]
[1730101956626,0.145925,68528.0,68526.0,0.13707938]
[1730101956864,0.00365748,68527.0,68526.0,0.13707938]
[1730101957106,0.14958448,68527.0,68526.0,0.13707938]
[1730101957816,0.14958448,68527.0,68526.0,0.21317938]
[1730101958301,0.00365748,68527.0,68526.0,0.21417938]
[1730101958538,0.00365748,68527.0,68526.0,0.21317938]
[1730101958758,0.04365171,68533.0,68526.0,0.27107876]
[1730101958969,0.14958186,68527.0,68526.0,0.21617938]
[1730101959225,0.145927,68527.0,68526.0,0.21317938]
[1730101959412,0.14958121,68527.0,68526.0,0.21317938]
[1730101959624,0.14958121,68527.0,68526.0,0.21717938]
[1730101959839,0.00365421,68527.0,68526.0,0.21717938]
[1730101960071,0.145927,68527.0,68526.0,0.21717938]
[1730101960302,0.1495859,68527.0,68526.0,0.21717938]
[1730101960793,0.1495859,68527.0,68526.0,0.21317938]
[1730101961010,0.0036589,68527.0,68526.0,0.21317938]
[1730101961702,0.145927,68528.0,68526.0,0.21617938]
[1730101961937,0.291851,68529.0,68526.0,0.21617938]
[1730101961938,0.1495859,68527.0,68526.0,0.28557276]
[1730101962155,0.0036589,68527.0,68526.0,0.21717938]
[1730101962372,0.1495859,68527.0,68526.0,0.21717938]
[1730101962613,0.145927,68527.0,68526.0,0.21317938]
[1730101962843,0.1495859,68527.0,68526.0,0.21617938]
[1730101963150,0.1495859,68527.0,68526.0,0.0791]
[1730101963372,0.1495859,68527.0,68526.0,0.003]
[1730101963373,0.1515859,68527.0,68526.0,0.003]
[1730101964253,0.145944,68519.0,68518.0,0.0821]
[1730101964481,0.14960281,68519.0,68518.0,0.0821]
[1730101965858,0.15060281,68519.0,68518.0,0.0911]
[1730101966732,0.00465881,68519.0,68518.0,0.0911]
[1730101966969,0.00565881,68519.0,68518.0,0.0911]
[1730101968540,0.15160281,68519.0,68518.0,0.0911]
[1730101968955,0.00565881,68519.0,68518.0,0.0911]
[1730101969378,0.00565881,68519.0,68518.0,0.20693844]
[1730101969621,0.00565881,68519.0,68518.0,0.0911]
[1730101969844,0.002,68519.0,68518.0,0.0911]
[1730101970055,0.00565881,68519.0,68518.0,0.0911]
[1730101973370,0.00565881,68519.0,68518.0,0.092746]
[1730101974666,0.15160281,68519.0,68518.0,0.010646]
[1730101976293,0.30910662,68519.0,68518.0,0.010646]
[1730101976504,0.57515823,68519.0,68518.0,0.010646]
[1730101976723,0.51017426,68519.0,68518.0,0.010646]
[1730101977160,0.50817426,68519.0,68518.0,0.001646]
[1730101977371,0.69587426,68519.0,68518.0,0.001646]
[1730101977607,0.87937426,68519.0,68518.0,0.001646]
[1730101977839,0.87537426,68519.0,68518.0,0.001646]
[1730101978267,0.348049,68517.0,68516.0,0.001646]
[1730101978516,0.8918637,68517.0,68516.0,0.001646]
[1730101978779,0.8938637,68517.0,68516.0,0.001646]
[1730101979235,1.04139817,68517.0,68516.0,0.001646]
[1730101980096,0.8938637,68517.0,68516.0,0.001646]
[1730101980373,0.9078637,68517.0,68516.0,0.001646]
[1730101980585,1.54746108,68517.0,68516.0,0.001646]
[1730101980806,1.4203817,68517.0,68516.0,0.002646]
[1730101981063,1.62555143,68517.0,68516.0,0.002646]
[1730101981317,1.62555143,68517.0,68510.0,0.000822]
[1730101981318,0.27,68511.0,68510.0,0.000822]
[1730101981550,1.27111183,68511.0,68510.0,0.000822]
[1730101981789,0.03,68510.0,68509.0,0.000822]
[1730101982013,0.67456438,68500.0,68499.0,0.21887745]
[1730101982239,1.01613583,68500.0,68499.0,0.21887745]
[1730101982471,0.146006,68490.0,68479.0,0.078252]
[1730101982750,0.146006,68490.0,68479.0,0.001652]
[1730101982751,0.31209136,68490.0,68479.0,0.001652]
[1730101982973,0.148021,68483.0,68479.0,0.001652]
[1730101983412,0.1515959,68483.0,68479.0,0.001652]
[1730101983646,0.146023,68482.0,68479.0,0.001652]
[1730101984106,0.14959695,68482.0,68479.0,0.001652]
[1730101984599,0.00357395,68482.0,68479.0,0.13873138]
[1730101984846,0.00357395,68482.0,68481.0,0.20461254]
[1730101985075,0.146016,68486.0,68482.0,0.146022]
[1730101985307,0.292025,68488.0,68481.0,0.000822]
[1730101985536,0.001,68483.0,68481.0,0.146846]
[1730101985765,0.001,68483.0,68482.0,0.146023]
[1730101985963,0.294025,68488.0,68481.0,0.000822]
[1730101986214,0.146018,68485.0,68481.0,0.000822]
[1730101986478,0.146018,68485.0,68481.0,0.146847]
[1730101986705,0.44302,68490.0,68489.0,0.001646]
[1730101987614,0.44502,68490.0,68489.0,0.001646]
[1730101987839,0.44302,68490.0,68489.0,0.001646]
[1730101988067,0.44302,68490.0,68489.0,0.002646]
[1730101988505,0.44502,68490.0,68489.0,0.002646]
[1730101988730,0.43802,68490.0,68489.0,0.002646]
[1730101988984,0.43802,68490.0,68489.0,0.001646]
[1730101989682,0.44202,68490.0,68489.0,0.001646]
[1730101990371,0.43802,68490.0,68489.0,0.003646]
[1730101990610,0.43802,68490.0,68489.0,0.001646]
[1730101991056,0.43902,68490.0,68489.0,0.001646]
[1730101991535,0.44102,68490.0,68489.0,0.001646]
[1730101991750,0.44002,68490.0,68489.0,0.001646]
[1730101991980,0.44102,68490.0,68489.0,0.001646]
[1730101993122,0.44302,68490.0,68489.0,0.001646]
[1730101993366,0.151006,68490.0,68489.0,0.001646]
[1730101996213,0.153006,68490.0,68489.0,0.001646]
[1730101996656,0.151006,68490.0,68489.0,0.001646]
[1730101999370,0.15658868,68490.0,68489.0,0.001646]
[1730101999626,0.15458868,68490.0,68489.0,0.001646]
[1730102000125,0.15658868,68490.0,68489.0,0.001646]
[1730102003941,0.16158868,68490.0,68489.0,0.001646]
[1730102004409,0.15658868,68490.0,68489.0,0.001646]
[1730102004653,0.16158868,68490.0,68489.0,0.001646]
[1730102010581,0.16658868,68490.0,68489.0,0.001646]
[1730102012106,0.16458868,68490.0,68489.0,0.001646]
[1730102012556,0.15958868,68490.0,68489.0,0.001646]
[1730102012776,0.16458868,68490.0,68489.0,0.001646]
[1730102013943,0.16658868,68490.0,68489.0,0.001646]
[1730102014167,0.16458868,68490.0,68489.0,0.001646]
[1730102014383,0.16158868,68490.0,68489.0,0.001646]
[1730102014573,0.16658868,68490.0,68489.0,0.001646]
[1730102017944,0.16158868,68490.0,68489.0,0.001646]
[1730102018171,0.16658868,68490.0,68489.0,0.001646]
[1730102019078,0.16458868,68490.0,68489.0,0.001646]
[1730102019319,0.01858268,68490.0,68489.0,0.001646]
[1730102019784,0.06292879,68490.0,68489.0,0.001646]
[1730102020970,0.06492879,68490.0,68489.0,0.001646]
[1730102021193,0.10848389,68490.0,68489.0,0.001646]
[1730102021883,0.10348389,68490.0,68489.0,0.001646]
[1730102022141,0.10848389,68490.0,68489.0,0.001646]
[1730102022366,0.150039,68490.0,68489.0,0.001646]
[1730102022843,0.08426059,68490.0,68489.0,0.001646]
[1730102023079,0.07426059,68490.0,68489.0,0.1670097]
[1730102023299,0.00858268,68490.0,68489.0,0.65567291]
[1730102023524,0.005,68490.0,68489.0,0.65566978]
[1730102023750,0.005,68490.0,68489.0,0.65566751]
[1730102023973,0.005,68490.0,68489.0,0.56760381]
[1730102024431,0.04378296,68495.0,68489.0,0.41323534]
[1730102024672,0.04378296,68495.0,68490.0,0.00522467]
[1730102024894,0.00359103,68494.0,68492.0,0.146001]
[1730102025110,0.04737399,68494.0,68491.0,0.146003]
[1730102025348,0.04378296,68494.0,68492.0,0.00522248]
[1730102025580,0.04378296,68494.0,68491.0,0.146003]
[1730102025805,0.00359201,68493.0,68491.0,0.146003]
[1730102026270,0.04378296,68494.0,68491.0,0.146003]
[1730102026726,0.00359201,68493.0,68491.0,0.146003]
[1730102026937,0.001,68494.0,68491.0,0.146003]
[1730102027196,0.04378296,68495.0,68491.0,0.146003]
[1730102027197,0.00359033,68492.0,68491.0,0.007]
[1730102027411,0.001,68493.0,68491.0,0.146004]
[1730102027854,0.001,68493.0,68491.0,0.007]
[1730102027855,0.00359033,68492.0,68491.0,0.007]
[1730102028078,0.00359033,68492.0,68489.0,0.001646]
[1730102028560,0.04737329,68492.0,68489.0,0.001646]
[1730102029228,0.04837329,68492.0,68489.0,0.001646]
[1730102029657,0.04837329,68492.0,68491.0,0.007]
[1730102029876,0.00359033,68492.0,68489.0,0.001646]
[1730102030116,0.00459033,68492.0,68489.0,0.001646]
[1730102030336,0.00459033,68492.0,68489.0,0.009646]
[1730102030337,0.00559033,68492.0,68489.0,0.009646]
[1730102030558,0.00559033,68492.0,68489.0,0.001646]
[1730102030778,0.00459033,68492.0,68489.0,0.001646]
[1730102031454,0.00559033,68492.0,68491.0,0.007]
[1730102032100,0.00659033,68492.0,68491.0,0.007]
[1730102032348,0.00659033,68492.0,68491.0,0.0224658]
[1730102032562,0.00459033,68492.0,68491.0,0.146004]
[1730102032782,0.00359033,68492.0,68491.0,0.146004]
[1730102033008,0.04378296,68494.0,68489.0,0.43577498]
[1730102033228,0.04378296,68494.0,68490.0,0.0435775]
[1730102033458,0.04378296,68496.0,68495.0,0.145996]
[1730102033695,0.00219083,68496.0,68491.0,0.0802]
[1730102033920,0.00219083,68496.0,68492.0,0.438005]
[1730102034145,0.00219083,68496.0,68492.0,0.292003]
[1730102034331,0.00219083,68496.0,68493.0,0.146]
[1730102034548,0.00219083,68496.0,68492.0,0.292003]
[1730102034549,0.00219083,68496.0,68492.0,0.146002]
[1730102035453,0.00319083,68496.0,68493.0,0.145998]
[1730102035661,0.00319083,68496.0,68491.0,0.081023]
[1730102035662,0.00319083,68496.0,68491.0,0.000823]
[1730102035881,0.00319083,68496.0,68491.0,0.146826]
[1730102036157,0.00219083,68496.0,68492.0,0.146002]
[1730102038407,0.00319083,68496.0,68491.0,0.006823]
[1730102038624,0.00819083,68496.0,68491.0,0.006823]
[1730102038846,0.002,68494.0,68491.0,0.006823]
[1730102039074,0.002,68495.0,68491.0,0.006823]
[1730102039995,0.002,68495.0,68491.0,0.000823]
[1730102040210,0.05297379,68496.0,68491.0,0.005823]
[1730102040424,0.05097379,68496.0,68491.0,0.000823]
[1730102040875,0.05097018,68496.0,68491.0,0.005823]
[1730102041091,0.002,68495.0,68491.0,0.005823]
[1730102041527,0.05097018,68496.0,68491.0,0.151825]
[1730102041753,0.05097018,68496.0,68491.0,0.005823]
[1730102041974,0.05097018,68496.0,68491.0,0.000823]
[1730102041975,0.00719083,68496.0,68491.0,0.000823]
[1730102042191,0.001,68495.0,68491.0,0.000823]
[1730102042414,0.001,68495.0,68492.0,0.146002]
[1730102042635,0.00719083,68496.0,68493.0,0.13711198]
[1730102043075,0.00359125,68495.0,68493.0,0.13711198]
[1730102043539,0.00719083,68496.0,68493.0,0.13711198]
[1730102043802,0.00359125,68495.0,68493.0,0.13711198]
[1730102044235,0.00719083,68496.0,68493.0,0.13711198]
[1730102044669,0.00359139,68495.0,68493.0,0.13711198]
[1730102045331,0.00359139,68495.0,68493.0,0.14011198]
[1730102045573,0.00359139,68495.0,68493.0,0.18357148]
[1730102046514,0.00719083,68496.0,68493.0,0.18357148]
[1730102046722,0.00358997,68494.0,68493.0,0.18357148]
[1730102046939,0.00719083,68496.0,68493.0,0.18357148]
[1730102047150,0.00359093,68495.0,68493.0,0.18357148]
[1730102047363,0.00719083,68496.0,68493.0,0.18357148]
[1730102047607,0.00359084,68495.0,68493.0,0.14011198]
[1730102048255,0.00359084,68495.0,68493.0,0.13711198]
[1730102048690,0.00359084,68495.0,68493.0,0.14011198]
[1730102048909,0.00359084,68495.0,68493.0,0.13711198]
[1730102049367,0.00358785,68494.0,68493.0,0.14011198]
[1730102049807,0.00719083,68496.0,68493.0,0.13711198]
[1730102050032,0.00358784,68494.0,68493.0,0.14411198]
[1730102050269,0.00719083,68496.0,68493.0,0.13711198]
[1730102050513,0.00358784,68494.0,68493.0,0.13711198]
[1730102050761,0.001,68495.0,68493.0,0.13711198]
[1730102050975,0.00358784,68494.0,68493.0,0.13711198]
[1730102051446,0.001,68495.0,68493.0,0.57511198]
[1730102051686,0.001,68494.0,68493.0,0.445]
[1730102051908,0.38678963,68494.0,68493.0,0.445]
[1730102052139,0.24279163,68494.0,68493.0,0.445]
[1730102052389,0.43256151,68494.0,68493.0,0.445]
[1730102052618,0.43256151,68494.0,68493.0,0.438]
[1730102052619,0.43156151,68494.0,68493.0,0.438]
[1730102052853,0.28556351,68494.0,68493.0,0.445]
[1730102053077,0.24179163,68494.0,68493.0,0.438]
[1730102053302,0.23979163,68494.0,68493.0,0.438]
[1730102053520,0.38678963,68494.0,68493.0,0.445]
[1730102053735,0.24379163,68494.0,68493.0,0.445]
[1730102053956,0.28757084,68494.0,68493.0,0.445]
[1730102054407,0.28557084,68494.0,68493.0,0.445]
[1730102055282,0.28757084,68494.0,68493.0,0.445]
[1730102055511,0.28557084,68494.0,68493.0,0.445]
[1730102055729,0.28757084,68494.0,68493.0,0.445]
[1730102057076,0.28557084,68494.0,68493.0,0.445]
[1730102057943,0.28757084,68494.0,68493.0,0.445]
[1730102058818,0.43356884,68494.0,68493.0,0.445]
[1730102059106,0.38978963,68494.0,68493.0,0.445]
[1730102059323,0.24379163,68494.0,68493.0,0.445]
[1730102059563,0.24179163,68494.0,68493.0,0.445]
[1730102060022,0.28558372,68494.0,68493.0,0.445]
[1730102060488,0.24179163,68494.0,68493.0,0.445]
[1730102060731,0.24379163,68494.0,68493.0,0.445]
[1730102061381,0.24179163,68494.0,68493.0,0.445]
[1730102062534,0.24379163,68494.0,68493.0,0.445]
[1730102064821,0.30945788,68494.0,68493.0,0.445]
[1730102065953,0.30745788,68494.0,68493.0,0.445]
[1730102067491,0.24179163,68494.0,68493.0,0.445]
[1730102070536,0.24379163,68494.0,68493.0,0.445823]
[1730102073469,0.33134663,68494.0,68493.0,0.445823]
[1730102073687,0.24379163,68494.0,68493.0,0.445823]
[1730102074428,0.33134663,68494.0,68493.0,0.445823]
[1730102074695,0.24379163,68494.0,68493.0,0.445823]
[1730102076667,0.38978963,68494.0,68493.0,0.445823]
[1730102076898,0.48978963,68494.0,68493.0,0.445823]
[1730102077110,0.43145339,68494.0,68493.0,0.445823]
[1730102077321,0.57745139,68494.0,68493.0,0.445823]
[1730102077531,0.43145339,68494.0,68493.0,0.445823]
[1730102080570,0.34379163,68494.0,68493.0,0.445823]
[1730102082731,0.00558782,68494.0,68493.0,0.6366522]
[1730102082974,0.00558782,68494.0,68493.0,0.64188541]
[1730102083188,0.002,68494.0,68493.0,0.64188541]
[1730102083666,0.002,68494.0,68493.0,0.591823]